[Event "Juniorallsvenskan 2019, Division 1 and 2"]
[Site "Molnlycke kulturhus, Biblioteksgatan 2, Molnlycke, Sweden"]
[Date "2019.11.23"]
[Round "2.14"]
[White "Ostlund, Joar"]
[Black "Ytterberg, Felix"]
[Result "1-0"]
[TimeControl "90 minutes + 30 seconds per move from move one"]
[WhiteFideId "1735020"]
[BlackFideId "1740687"]
[WhiteElo "1955"]
[BlackElo "2005"]

1. d4 {[%clk 01:30:58]} Nf6 {[%clk 01:30:49]} {[%emt 16:00:22]} 2. Nc3 {[%clk
01:30:39]} {[%emt 00:00:49]} c5 {[%clk 01:30:58]} {[%emt 00:00:20]} 3. d5
{[%clk 01:29:56]} {[%emt 00:01:15]} d6 {[%clk 01:31:13]} {[%emt 00:00:13]} 4.
e4 {[%clk 01:29:34]} {[%emt 00:00:53]} a6 {[%clk 01:30:59]} {[%emt 00:00:44]} 5.
f4 {[%clk 01:22:27]} {[%emt 00:07:38]} b5 {[%clk 01:28:21]} {[%emt 00:03:03]} 6.
e5 {[%clk 01:12:11]} {[%emt 00:10:50]} dxe5 {[%clk 01:27:40]} {[%emt 00:01:11]}
7. fxe5 {[%clk 01:12:17]} {[%emt 00:00:24]} b4 {[%clk 01:27:53]} {[%emt
00:00:17]} 8. exf6 {[%clk 01:10:44]} {[%emt 00:02:04]} bxc3 {[%clk 01:28:08]}
{[%emt 00:00:14]} 9. bxc3 {[%clk 00:57:14]} {[%emt 00:14:00]} gxf6 {[%clk
01:26:41]} {[%emt 00:01:55]} 10. Nf3 {[%clk 00:55:32]} {[%emt 00:02:15]} Nd7
{[%clk 01:08:52]} {[%emt 00:18:18]} 11. Bd3 {[%clk 00:51:34]} {[%emt 00:04:29]}
Bb7 {[%clk 01:07:44]} {[%emt 00:01:31]} 12. c4 {[%clk 00:50:55]} {[%emt
00:01:16]} e6 {[%clk 01:04:32]} {[%emt 00:03:40]} 13. O-O {[%clk 00:40:45]}
{[%emt 00:10:42]} exd5 {[%clk 01:02:39]} {[%emt 00:02:21]} 14. Re1+ {[%clk
00:31:51]} {[%emt 00:09:26]} Be7 {[%clk 00:57:39]} {[%emt 00:05:29]} 15. Nh4
{[%clk 00:26:54]} {[%emt 00:05:28]} Ne5 {[%clk 00:57:35]} {[%emt 00:00:34]} 16.
Nf5 {[%clk 00:24:54]} {[%emt 00:02:30]} Rg8 {[%clk 00:54:41]} {[%emt 00:03:23]}
17. Rb1 {[%clk 00:23:36]} {[%emt 00:01:50]} Qc7 {[%clk 00:52:24]} {[%emt
00:02:45]} 18. Nh6 {[%clk 00:14:53]} {[%emt 00:09:14]} Rg7 {[%clk 00:51:52]}
{[%emt 00:01:01]} 19. Nf5 {[%clk 00:15:14]} {[%emt 00:00:10]} Rg8 {[%clk
00:52:01]} {[%emt 00:00:21]} 20. Nh6 {[%clk 00:14:09]} {[%emt 00:01:35]} Rg7
{[%clk 00:51:30]} {[%emt 00:01:01]} 21. Nf5 {[%clk 00:08:40]} {[%emt 00:05:59]}
Rg8 {[%clk 00:51:38]} {[%emt 00:00:21]} 22. Nh6 {[%clk 00:07:22]} {[%emt
00:01:49]} Rh8 {[%clk 00:50:12]} {[%emt 00:01:54]} 23. Nf5 {[%clk 00:07:48]}
{[%emt 00:00:06]} O-O-O {[%clk 00:49:33]} {[%emt 00:01:06]} 24. cxd5 {[%clk
00:05:29]} {[%emt 00:02:51]} Rxd5 {[%clk 00:49:15]} {[%emt 00:00:46]} 25. Rxb7
{[%clk 00:04:26]} {[%emt 00:01:36]} Qxb7 {[%clk 00:48:57]} {[%emt 00:00:48]} 26.
Nxe7+ {[%clk 00:02:38]} {[%emt 00:02:18]} Qxe7 {[%clk 00:49:15]} {[%emt
00:00:11]} 27. Bxa6+ {[%clk 00:02:47]} {[%emt 00:00:22]} Kc7 {[%clk 00:49:36]}
{[%emt 00:00:09]} 28. Qxd5 {[%clk 00:02:49]} {[%emt 00:00:28]} Nf3+ {[%clk
00:49:52]} {[%emt 00:00:13]} 29. Qxf3 {[%clk 00:03:10]} {[%emt 00:00:09]} Qxe1+
{[%clk 00:50:14]} {[%emt 00:00:08]} 30. Qf1 {[%clk 00:03:27]} {[%emt 00:00:13]}
Qc3 {[%clk 00:49:37]} {[%emt 00:01:02]} 31. Bf4+ {[%clk 00:03:26]} {[%emt
00:00:37]} Kd7 {[%clk 00:49:26]} {[%emt 00:00:39]} 32. Qb5+ {[%clk 00:01:02]}
{[%emt 00:02:57]} Ke7 {[%clk 00:49:32]} {[%emt 00:00:21]} 33. Qb7+ {[%clk
00:01:13]} {[%emt 00:00:20]} Ke6 {[%clk 00:49:45]} {[%emt 00:00:15]} 34. Qe4+
{[%clk 00:01:08]} {[%emt 00:00:38]} Kd7 {[%clk 00:50:05]} {[%emt 00:00:10]} 35.
Bb5+ {[%clk 00:01:30]} {[%emt 00:00:07]} Kd8 {[%clk 00:50:14]} {[%emt
00:00:16]} 36. Qd5+ {[%clk 00:01:46]} {[%emt 00:00:20]} 1-0

[Event "Juniorallsvenskan 2019, Division 1 and 2"]
[Site "Molnlycke kulturhus, Biblioteksgatan 2, Molnlycke, Sweden"]
[Date "2019.11.23"]
[Round "2.15"]
[White "Dingertz, Erik"]
[Black "Rosenthal, Emanuel"]
[Result "0-1"]
[TimeControl "90 minutes + 30 seconds per move from move one"]
[WhiteFideId "1741578"]
[BlackFideId "1738852"]
[WhiteElo "1892"]
[BlackElo "1703"]

1. Nf3 {[%clk 01:30:57]} {[%emt 00:00:02]} c5 {[%clk 01:28:24]} {[%emt
00:02:38]} 2. c4 {[%clk 01:30:21]} {[%emt 00:01:06]} g6 {[%clk 01:28:32]}
{[%emt 00:00:22]} 3. Nc3 {[%clk 01:30:45]} {[%emt 00:00:05]} Nc6 {[%clk
01:28:21]} {[%emt 00:00:42]} 4. g3 {[%clk 01:31:02]} {[%emt 00:00:11]} Bg7
{[%clk 01:28:32]} {[%emt 00:00:20]} 5. Bg2 {[%clk 01:31:24]} {[%emt 00:00:06]}
e6 {[%clk 01:28:52]} {[%emt 00:00:12]} 6. e3 {[%clk 01:26:02]} {[%emt
00:05:52]} Nge7 {[%clk 01:26:00]} {[%emt 00:03:22]} 7. O-O {[%clk 01:23:30]}
{[%emt 00:03:01]} d5 {[%clk 01:24:42]} {[%emt 00:01:49]} 8. cxd5 {[%clk
01:14:41]} {[%emt 00:09:19]} exd5 {[%clk 01:19:56]} {[%emt 00:05:16]} 9. d4
{[%clk 01:11:55]} {[%emt 00:03:16]} b6 {[%clk 01:18:52]} {[%emt 00:01:34]} 10.
Qa4 {[%clk 01:10:16]} {[%emt 00:02:07]} O-O {[%clk 01:15:43]} {[%emt 00:03:41]}
11. dxc5 {[%clk 01:09:25]} {[%emt 00:01:21]} bxc5 {[%clk 01:14:58]} {[%emt
00:01:14]} 12. Rd1 {[%clk 01:09:47]} {[%emt 00:00:07]} Rb8 {[%clk 01:03:29]}
{[%emt 00:12:01]} 13. Nxd5 {[%clk 01:02:44]} {[%emt 00:07:33]} Bd7 {[%clk
00:54:30]} {[%emt 00:09:29]} 14. Rb1 {[%clk 00:54:34]} {[%emt 00:08:40]} Nxd5
{[%clk 00:50:48]} {[%emt 00:04:12]} 15. Rxd5 {[%clk 00:53:04]} {[%emt
00:01:59]} Qe7 {[%clk 00:50:26]} {[%emt 00:00:52]} 16. e4 {[%clk 00:46:38]}
{[%emt 00:06:56]} Rb4 {[%clk 00:49:55]} {[%emt 00:01:01]} 17. Qd1 {[%clk
00:46:18]} {[%emt 00:00:50]} Be6 {[%clk 00:44:22]} {[%emt 00:06:04]} 18. Rd6
{[%clk 00:44:20]} {[%emt 00:02:28]} Nd4 {[%clk 00:38:48]} {[%emt 00:06:04]} 19.
a3 {[%clk 00:40:54]} {[%emt 00:03:57]} Qxd6 {[%clk 00:37:21]} {[%emt 00:01:55]}
20. axb4 {[%clk 00:41:15]} {[%emt 00:00:10]} Bb3 {[%clk 00:33:31]} {[%emt
00:04:21]} 21. Qd2 {[%clk 00:40:31]} {[%emt 00:01:12]} cxb4 {[%clk 00:29:59]}
{[%emt 00:04:03]} 22. Nxd4 {[%clk 00:34:37]} {[%emt 00:06:24]} Bxd4 {[%clk
00:29:21]} {[%emt 00:01:08]} 23. Qf4 {[%clk 00:32:29]} {[%emt 00:02:37]} Qxf4
{[%clk 00:24:56]} {[%emt 00:04:56]} 24. Bxf4 {[%clk 00:31:52]} {[%emt
00:01:06]} Rc8 {[%clk 00:24:59]} {[%emt 00:00:28]} 25. Rc1 {[%clk 00:21:40]}
{[%emt 00:10:42]} Rc2 {[%clk 00:20:22]} {[%emt 00:05:06]} 26. Rxc2 {[%clk
00:17:48]} {[%emt 00:04:23]} Bxc2 {[%clk 00:20:46]} {[%emt 00:00:05]} 27. Bd6
{[%clk 00:18:12]} {[%emt 00:00:06]} a5 {[%clk 00:20:04]} {[%emt 00:01:13]} 28.
Bc7 {[%clk 00:18:37]} {[%emt 00:00:05]} a4 {[%clk 00:20:05]} {[%emt 00:00:29]}
29. Bd6 {[%clk 00:18:59]} {[%emt 00:00:07]} Bxb2 {[%clk 00:20:15]} {[%emt
00:00:20]} 30. Bxb4 {[%clk 00:19:17]} {[%emt 00:00:13]} a3 {[%clk 00:20:08]}
{[%emt 00:00:38]} 31. Bxa3 {[%clk 00:19:42]} {[%emt 00:00:04]} Bxa3 {[%clk
00:20:31]} {[%emt 00:00:06]} 32. Bf3 {[%clk 00:19:08]} {[%emt 00:01:04]} Kg7
{[%clk 00:19:39]} {[%emt 00:01:22]} 33. Kg2 {[%clk 00:18:56]} {[%emt 00:00:42]}
Kf6 {[%clk 00:19:33]} {[%emt 00:00:36]} 34. Kh3 {[%clk 00:18:55]} {[%emt
00:00:31]} Bc5 {[%clk 00:19:24]} {[%emt 00:00:40]} 35. Kg2 {[%clk 00:19:06]}
{[%emt 00:00:18]} Ke5 {[%clk 00:19:47]} {[%emt 00:00:08]} 36. h3 {[%clk
00:19:17]} {[%emt 00:00:17]} Bxe4 {[%clk 00:20:08]} {[%emt 00:00:11]} 37. Bxe4
{[%clk 00:19:20]} {[%emt 00:00:27]} Kxe4 {[%clk 00:20:31]} {[%emt 00:00:07]} 38.
f3+ {[%clk 00:19:44]} {[%emt 00:00:05]} Ke3 {[%clk 00:20:43]} {[%emt 00:00:19]}
39. g4 {[%clk 00:20:02]} {[%emt 00:00:11]} Bd6 {[%clk 00:20:43]} {[%emt
00:00:30]} 0-1

[Event "Juniorallsvenskan 2019, Division 1 and 2"]
[Site "Molnlycke kulturhus, Biblioteksgatan 2, Molnlycke, Sweden"]
[Date "2019.11.23"]
[Round "2.16"]
[White "Fridman, Arvid"]
[Black "Johansson-Ohman, Daniel"]
[Result "0-1"]
[TimeControl "90 minutes + 30 seconds per move from move one"]
[WhiteFideId "1758632"]
[BlackFideId "1736361"]
[WhiteElo "1596"]
[BlackElo "1810"]

1. d4 {[%clk 01:30:59]} f5 {[%clk 01:30:39]} {[%emt 00:00:21]} 2. g3 {[%clk
01:31:16]} {[%emt 00:00:14]} Nf6 {[%clk 01:30:43]} {[%emt 00:00:26]} 3. Bg2
{[%clk 01:31:33]} {[%emt 00:00:13]} g6 {[%clk 01:30:56]} {[%emt 00:00:16]} 4.
Nh3 {[%clk 01:31:41]} {[%emt 00:00:22]} Bg7 {[%clk 01:30:28]} {[%emt 00:00:59]}
5. Nc3 {[%clk 01:31:39]} {[%emt 00:00:31]} d6 {[%clk 01:30:08]} {[%emt
00:00:50]} 6. Nf4 {[%clk 01:31:52]} {[%emt 00:00:17]} c6 {[%clk 01:29:36]}
{[%emt 00:01:03]} 7. d5 {[%clk 01:32:10]} {[%emt 00:00:12]} cxd5 {[%clk
01:20:39]} {[%emt 00:09:26]} 8. Nfxd5 {[%clk 01:30:09]} {[%emt 00:02:31]} Nxd5
{[%clk 01:12:56]} {[%emt 00:08:14]} 9. Qxd5 {[%clk 01:27:53]} {[%emt 00:02:45]}
Nc6 {[%clk 01:12:32]} {[%emt 00:00:54]} 10. Qb5 {[%clk 01:26:47]} {[%emt
00:01:33]} a6 {[%clk 01:06:12]} {[%emt 00:06:53]} 11. Bxc6+ {[%clk 01:23:38]}
{[%emt 00:03:40]} bxc6 {[%clk 01:05:22]} {[%emt 00:01:20]} 12. Qxc6+ {[%clk
01:24:00]} {[%emt 00:00:08]} Bd7 {[%clk 01:05:36]} {[%emt 00:00:15]} 13. Qc4
{[%clk 01:23:06]} {[%emt 00:01:24]} Rc8 {[%clk 01:04:11]} {[%emt 00:01:55]} 14.
Qd3 {[%clk 01:18:08]} {[%emt 00:05:28]} Qa5 {[%clk 00:54:41]} {[%emt 00:10:00]}
15. Bd2 {[%clk 01:16:29]} {[%emt 00:02:10]} Bc6 {[%clk 00:53:33]} {[%emt
00:01:37]} 16. O-O {[%clk 01:13:30]} {[%emt 00:03:29]} O-O {[%clk 00:50:45]}
{[%emt 00:03:18]} 17. Nd1 {[%clk 01:01:24]} {[%emt 00:12:37]} Qc5 {[%clk
00:44:10]} {[%emt 00:07:05]} 18. Bc3 {[%clk 00:55:43]} {[%emt 00:06:10]} Be4
{[%clk 00:38:36]} {[%emt 00:06:04]} 19. Qd2 {[%clk 00:53:00]} {[%emt 00:03:14]}
e5 {[%clk 00:33:34]} {[%emt 00:05:31]} 20. e3 {[%clk 00:49:03]} {[%emt
00:04:27]} Bf3 {[%clk 00:27:44]} {[%emt 00:06:20]} 21. Bb4 {[%clk 00:47:35]}
{[%emt 00:01:58]} Qc4 {[%clk 00:24:23]} {[%emt 00:03:51]} 22. b3 {[%clk
00:46:14]} {[%emt 00:01:51]} Qg4 {[%clk 00:22:30]} {[%emt 00:02:23]} 23. e4
{[%clk 00:43:51]} {[%emt 00:02:53]} Qh3 {[%clk 00:22:18]} {[%emt 00:00:42]} 24.
Ne3 {[%clk 00:43:24]} {[%emt 00:00:58]} f4 {[%clk 00:20:43]} {[%emt 00:02:05]}
25. c4 {[%clk 00:37:40]} {[%emt 00:06:13]} Bh6 {[%clk 00:19:59]} {[%emt
00:01:14]} 26. Bxd6 {[%clk 00:34:38]} {[%emt 00:03:32]} fxe3 {[%clk 00:20:16]}
{[%emt 00:00:13]} 27. fxe3 {[%clk 00:34:53]} {[%emt 00:00:15]} Bxe3+ {[%clk
00:20:20]} {[%emt 00:00:27]} 0-1

[Event "Juniorallsvenskan 2019, Division 1 and 2"]
[Site "Molnlycke kulturhus, Biblioteksgatan 2, Molnlycke, Sweden"]
[Date "2019.11.23"]
[Round "2.17"]
[White "Klosinski, Daniel"]
[Black "Morling, Joakim"]
[Result "1-0"]
[TimeControl "90 minutes + 30 seconds per move from move one"]
[WhiteFideId "1726323"]
[BlackFideId "1715933"]
[WhiteElo "1742"]
[BlackElo "2090"]

1. e4 {[%clk 01:30:59]} {[%emt 00:00:01]} e6 {[%clk 01:30:56]} {[%emt
00:00:04]} 2. d4 {[%clk 01:31:16]} {[%emt 00:00:13]} d5 {[%clk 01:31:22]}
{[%emt 00:00:03]} 3. Nd2 {[%clk 01:31:29]} {[%emt 00:00:17]} Nf6 {[%clk
01:31:45]} {[%emt 00:00:08]} 4. exd5 {[%clk 01:31:36]} {[%emt 00:00:23]} exd5
{[%clk 01:31:43]} {[%emt 00:00:32]} 5. Bd3 {[%clk 01:31:42]} {[%emt 00:00:23]}
Bd6 {[%clk 01:30:14]} {[%emt 00:01:59]} 6. Ne2 {[%clk 01:27:46]} {[%emt
00:04:26]} O-O {[%clk 01:29:51]} {[%emt 00:00:54]} 7. h3 {[%clk 01:22:23]}
{[%emt 00:05:52]} b6 {[%clk 01:30:00]} {[%emt 00:00:22]} 8. O-O {[%clk
01:20:49]} {[%emt 00:02:03]} c5 {[%clk 01:29:58]} {[%emt 00:00:32]} 9. dxc5
{[%clk 01:07:17]} {[%emt 00:14:02]} bxc5 {[%clk 01:30:19]} {[%emt 00:00:10]} 10.
c4 {[%clk 01:07:36]} {[%emt 00:00:11]} d4 {[%clk 01:18:52]} {[%emt 00:11:57]}
11. Ne4 {[%clk 01:07:05]} {[%emt 00:01:01]} Bb7 {[%clk 01:18:54]} {[%emt
00:00:30]} 12. Bg5 {[%clk 00:54:40]} {[%emt 00:12:54]} Be7 {[%clk 00:58:41]}
{[%emt 00:20:43]} 13. Bxf6 {[%clk 00:53:58]} {[%emt 00:01:11]} Bxf6 {[%clk
00:58:31]} {[%emt 00:00:41]} 14. Nxc5 {[%clk 00:52:00]} {[%emt 00:02:27]} Bc6
{[%clk 00:58:53]} {[%emt 00:00:08]} 15. Ng3 {[%clk 00:40:46]} {[%emt 00:11:43]}
Nd7 {[%clk 00:57:23]} {[%emt 00:02:02]} 16. Nxd7 {[%clk 00:36:42]} {[%emt
00:04:33]} Bxd7 {[%clk 00:56:39]} {[%emt 00:01:15]} 17. b4 {[%clk 00:32:02]}
{[%emt 00:05:10]} Rb8 {[%clk 00:56:48]} {[%emt 00:00:21]} 18. Rb1 {[%clk
00:30:35]} {[%emt 00:01:56]} g6 {[%clk 00:54:31]} {[%emt 00:02:47]} 19. c5
{[%clk 00:27:28]} {[%emt 00:03:37]} Be6 {[%clk 00:52:46]} {[%emt 00:02:15]} 20.
a4 {[%clk 00:26:04]} {[%emt 00:01:54]} Be7 {[%clk 00:49:48]} {[%emt 00:03:27]}
21. Qc2 {[%clk 00:24:03]} {[%emt 00:02:30]} Qd5 {[%clk 00:44:57]} {[%emt
00:05:22]} 22. a5 {[%clk 00:18:43]} {[%emt 00:05:50]} f5 {[%clk 00:42:43]}
{[%emt 00:02:44]} 23. Rfe1 {[%clk 00:18:37]} {[%emt 00:00:36]} Rf7 {[%clk
00:32:13]} {[%emt 00:11:00]} 24. Qe2 {[%clk 00:16:17]} {[%emt 00:02:48]} f4
{[%clk 00:28:43]} {[%emt 00:04:02]} 25. Qxe6 {[%clk 00:12:14]} {[%emt
00:04:33]} Qxe6 26. Rxe6 {[%clk 00:12:40]} {[%emt 00:00:15]} fxg3 {[%clk
00:29:29]} 27. fxg3 {[%clk 00:12:31]} {[%emt 00:00:43]} Kg7 {[%clk 00:27:59]}
28. Re4 {[%clk 00:11:40]} {[%emt 00:03:21]} Bg5 {[%clk 00:27:55]} 29. b5 {[%clk
00:08:19]} {[%emt 00:04:26]} Be7 {[%clk 00:18:11]} 30. c6 {[%clk 00:06:24]}
{[%emt 00:12:38]} Bd8 {[%clk 00:18:24]} 31. Re8 {[%clk 00:04:21]} {[%emt
00:02:50]} Bc7 {[%clk 00:17:38]} 32. Rxb8 {[%clk 00:04:17]} {[%emt 00:01:51]}
Bxb8 {[%clk 00:18:02]} 33. b6 {[%clk 00:04:32]} {[%emt 00:00:20]} axb6 {[%clk
00:17:24]} 34. axb6 {[%clk 00:04:56]} {[%emt 00:01:15]} Bxg3 {[%clk 00:17:42]}
35. Rc1 {[%clk 00:04:55]} {[%emt 00:00:41]} Bf4 {[%clk 00:12:36]} 36. Rc4
{[%clk 00:03:23]} {[%emt 00:07:40]} Be3+ {[%clk 00:09:39]} 37. Kh1 {[%clk
00:03:48]} {[%emt 00:03:30]} Re7 {[%clk 00:09:25]} 38. c7 {[%clk 00:02:22]}
{[%emt 00:02:41]} Bf4 {[%clk 00:09:48]} 39. g4 {[%clk 00:02:39]} {[%emt
00:00:19]} Re3 {[%clk 00:09:35]} 40. c8=Q {[%clk 00:02:06]} {[%emt 00:01:46]}
Rxd3 {[%clk 00:08:55]} 41. Rc7+ {[%clk 00:01:38]} {[%emt 00:02:09]} Kh6 {[%clk
00:09:14]} 42. Qf8+ {[%clk 00:01:49]} {[%emt 00:00:31]} Kg5 {[%clk 00:09:33]}
43. Rc5+ {[%clk 00:02:08]} {[%emt 00:00:20]} Kh4 {[%clk 00:09:29]} 44. Qxf4
{[%clk 00:02:09]} {[%emt 00:01:03]} h5 {[%clk 00:07:44]} 45. Rxh5+ {[%clk
00:02:05]} {[%emt 00:02:50]} gxh5 {[%clk 00:08:06]} 46. gxh5+ {[%clk 00:02:30]}
{[%emt 00:00:14]} Kxh5 {[%clk 00:08:23]} 47. Qf5+ {[%clk 00:02:53]} {[%emt
00:00:18]} 1-0

[Event "Juniorallsvenskan 2019, Division 1 and 2"]
[Site "Molnlycke kulturhus, Biblioteksgatan 2, Molnlycke, Sweden"]
[Date "2019.11.23"]
[Round "2.18"]
[White "Tornberg, Carlos"]
[Black "Johansson-Ohman, Linnea"]
[Result "0-1"]
[TimeControl "90 minutes + 30 seconds per move from move one"]
[WhiteFideId "1733478"]
[BlackFideId "1737260"]
[WhiteElo "1884"]
[BlackElo "1660"]

1. e4 {[%clk 01:30:56]} {[%emt 00:00:03]} c6 {[%clk 01:30:55]} {[%emt
00:00:05]} 2. d4 {[%clk 01:31:23]} {[%emt 00:00:04]} d5 {[%clk 01:31:19]}
{[%emt 00:00:05]} 3. Nc3 {[%clk 01:31:51]} {[%emt 00:00:03]} dxe4 {[%clk
01:31:40]} {[%emt 00:00:09]} 4. Nxe4 {[%clk 01:32:19]} {[%emt 00:00:02]} Nf6
{[%clk 01:31:59]} {[%emt 00:00:10]} 5. Nxf6+ {[%clk 01:32:43]} {[%emt
00:00:05]} exf6 {[%clk 01:32:23]} {[%emt 00:00:07]} 6. c3 {[%clk 01:32:33]}
{[%emt 00:00:40]} Bd6 {[%clk 01:32:37]} {[%emt 00:00:15]} 7. Bd3 {[%clk
01:32:56]} {[%emt 00:00:08]} O-O {[%clk 01:32:24]} {[%emt 00:00:43]} 8. Qc2
{[%clk 01:33:12]} {[%emt 00:00:14]} g6 {[%clk 01:32:29]} {[%emt 00:00:25]} 9.
h4 {[%clk 01:32:58]} {[%emt 00:00:44]} Re8+ {[%clk 01:32:08]} {[%emt 00:00:51]}
10. Ne2 {[%clk 01:31:56]} {[%emt 00:01:32]} f5 {[%clk 01:32:04]} {[%emt
00:00:35]} 11. h5 {[%clk 01:27:49]} {[%emt 00:04:36]} Be6 {[%clk 01:31:06]}
{[%emt 00:01:28]} 12. hxg6 {[%clk 01:25:14]} {[%emt 00:03:06]} fxg6 {[%clk
01:31:26]} {[%emt 00:00:09]} 13. g4 {[%clk 01:16:28]} {[%emt 00:09:17]} Rf8
{[%clk 01:22:27]} {[%emt 00:09:28]} 14. Bh6 {[%clk 01:12:28]} {[%emt 00:04:30]}
Rf7 {[%clk 01:21:50]} {[%emt 00:01:07]} 15. Rg1 {[%clk 01:08:48]} {[%emt
00:04:11]} Qf6 {[%clk 01:18:15]} {[%emt 00:04:04]} 16. gxf5 {[%clk 00:59:26]}
{[%emt 00:09:53]} Bxf5 {[%clk 01:18:23]} {[%emt 00:00:21]} 17. O-O-O {[%clk
00:58:12]} {[%emt 00:01:44]} Nd7 {[%clk 01:09:47]} {[%emt 00:09:06]} 18. Rg5
{[%clk 00:53:49]} {[%emt 00:04:53]} Bf8 {[%clk 01:04:22]} {[%emt 00:05:56]} 19.
Bxf8 {[%clk 00:52:27]} {[%emt 00:01:51]} Qxg5+ {[%clk 01:00:41]} {[%emt
00:04:11]} 20. f4 {[%clk 00:51:49]} {[%emt 00:01:07]} Qf6 {[%clk 00:57:29]}
{[%emt 00:03:41]} 21. Bh6 {[%clk 00:51:19]} {[%emt 00:01:01]} Bxd3 {[%clk
00:54:55]} {[%emt 00:03:04]} 22. Qxd3 {[%clk 00:51:18]} {[%emt 00:00:32]} Re8
{[%clk 00:49:08]} {[%emt 00:06:17]} 23. Ng3 {[%clk 00:47:05]} {[%emt 00:04:42]}
Rfe7 {[%clk 00:46:52]} {[%emt 00:02:46]} 24. Bg5 {[%clk 00:43:10]} {[%emt
00:04:26]} Qf7 {[%clk 00:43:01]} {[%emt 00:04:20]} 25. Bxe7 {[%clk 00:34:07]}
{[%emt 00:09:33]} Qxf4+ {[%clk 00:43:09]} {[%emt 00:00:22]} 26. Kb1 {[%clk
00:33:18]} {[%emt 00:01:20]} Rxe7 {[%clk 00:43:00]} {[%emt 00:00:38]} 27. Qc4+
{[%clk 00:29:13]} {[%emt 00:04:35]} Qf7 {[%clk 00:40:32]} {[%emt 00:02:58]} 28.
Qb4 {[%clk 00:26:27]} {[%emt 00:03:15]} Nb6 {[%clk 00:34:00]} {[%emt 00:07:03]}
29. Rf1 {[%clk 00:19:51]} {[%emt 00:07:06]} Qe6 {[%clk 00:30:34]} {[%emt
00:03:55]} 30. Qc5 {[%clk 00:16:08]} {[%emt 00:04:14]} Qe3 {[%clk 00:25:28]}
{[%emt 00:05:36]} 31. Rc1 {[%clk 00:10:43]} {[%emt 00:05:55]} Qd3+ {[%clk
00:21:49]} {[%emt 00:03:40]} 32. Ka1 {[%clk 00:11:12]} {[%emt 00:00:01]} Qd2
{[%clk 00:21:05]} {[%emt 00:01:44]} 33. Rb1 {[%clk 00:10:33]} {[%emt 00:01:08]}
Re1 {[%clk 00:20:39]} {[%emt 00:00:56]} 34. a4 {[%clk 00:10:35]} {[%emt
00:00:27]} Rxb1+ {[%clk 00:17:48]} {[%emt 00:03:21]} 35. Kxb1 {[%clk 00:11:04]}
Qd3+ {[%clk 00:17:59]} {[%emt 00:00:19]} 36. Ka1 {[%clk 00:11:14]} {[%emt
00:00:21]} Qxg3 {[%clk 00:18:21]} {[%emt 00:00:09]} 37. a5 {[%clk 00:11:23]}
{[%emt 00:00:20]} Qe1+ {[%clk 00:17:25]} {[%emt 00:01:26]} 38. Ka2 {[%clk
00:11:50]} {[%emt 00:00:03]} Qe6+ {[%clk 00:17:21]} {[%emt 00:00:34]} 39. b3
{[%clk 00:11:47]} {[%emt 00:00:33]} Nc8 {[%clk 00:15:38]} {[%emt 00:02:13]} 40.
Qg5 {[%clk 00:11:43]} {[%emt 00:00:33]} Qe7 {[%clk 00:13:51]} {[%emt 00:02:18]}
41. Qg4 {[%clk 00:11:35]} {[%emt 00:00:39]} Nd6 {[%clk 00:14:04]} {[%emt
00:00:17]} 42. c4 {[%clk 00:11:04]} {[%emt 00:01:00]} Kg7 {[%clk 00:12:59]}
{[%emt 00:01:35]} 43. d5 {[%clk 00:10:50]} {[%emt 00:00:44]} cxd5 {[%clk
00:12:41]} {[%emt 00:00:49]} 44. Qd4+ {[%clk 00:11:09]} {[%emt 00:00:10]} Qf6
{[%clk 00:12:58]} {[%emt 00:00:12]} 45. Qxd5 {[%clk 00:11:27]} {[%emt
00:00:12]} Nf7 {[%clk 00:03:07]} {[%emt 00:10:22]} 46. Qxb7 {[%clk 00:10:33]}
{[%emt 00:01:24]} Qd4 {[%clk 00:03:05]} {[%emt 00:00:32]} 47. Qb5 {[%clk
00:09:08]} {[%emt 00:01:54]} h5 {[%clk 00:02:38]} {[%emt 00:00:58]} 48. c5
{[%clk 00:07:48]} {[%emt 00:01:51]} Nd8 {[%clk 00:01:57]} {[%emt 00:01:10]} 49.
c6 {[%clk 00:07:09]} {[%emt 00:01:10]} Qd6 {[%clk 00:01:36]} {[%emt 00:00:49]}
50. Qc4 {[%clk 00:05:50]} {[%emt 00:01:50]} Nxc6 {[%clk 00:01:43]} {[%emt
00:00:23]} 51. Qc3+ {[%clk 00:05:07]} {[%emt 00:01:13]} Qf6 {[%clk 00:01:42]}
{[%emt 00:00:31]} 52. Qd2 {[%clk 00:04:04]} {[%emt 00:01:34]} h4 {[%clk
00:02:07]} {[%emt 00:00:04]} 53. b4 {[%clk 00:04:23]} {[%emt 00:00:11]} Qd4
{[%clk 00:02:11]} {[%emt 00:00:25]} 54. Qh2 {[%clk 00:03:56]} {[%emt 00:00:58]}
Qc4+ {[%clk 00:02:01]} {[%emt 00:00:39]} 55. Ka1 {[%clk 00:04:09]} {[%emt
00:00:17]} Qc3+ {[%clk 00:02:16]} {[%emt 00:00:14]} 56. Kb1 {[%clk 00:03:34]}
{[%emt 00:01:07]} Qxb4+ {[%clk 00:02:33]} {[%emt 00:00:13]} 57. Kc1 {[%clk
00:03:53]} {[%emt 00:00:10]} Qc3+ {[%clk 00:01:29]} {[%emt 00:01:33]} 58. Kb1
{[%clk 00:04:01]} {[%emt 00:00:22]} Qb3+ {[%clk 00:00:49]} {[%emt 00:01:10]} 59.
Kc1 {[%clk 00:04:28]} {[%emt 00:00:04]} Qg3 {[%clk 00:01:03]} {[%emt 00:00:16]}
60. Qb2+ {[%clk 00:04:51]} {[%emt 00:00:06]} Kh6 {[%clk 00:00:35]} {[%emt
00:00:59]} 61. Qh8+ {[%clk 00:04:42]} {[%emt 00:00:39]} Kg5 {[%clk 00:01:00]}
{[%emt 00:00:05]} 62. Qg8 {[%clk 00:04:19]} {[%emt 00:00:53]} Qe1+ {[%clk
00:01:15]} {[%emt 00:00:15]} 63. Kb2 {[%clk 00:04:38]} {[%emt 00:00:11]} Qxa5
{[%clk 00:01:25]} {[%emt 00:00:20]} 64. Qe8 {[%clk 00:05:06]} {[%emt 00:00:02]}
Qe5+ {[%clk 00:01:33]} {[%emt 00:00:22]} 0-1